fUSD/lending_fUSD_20240612
["ID","MTS","AMOUNT","RATE_DAILY","PERIOD"]
[329195378,1718170159271,-157.89,0.0001381,2]
[329195379,1718170159294,-250.0,0.0001384,2]
[329195380,1718170159319,-155.0,0.00013971,2]
[329195381,1718170159344,-798.09,0.00013976,2]
[329195382,1718170159369,-169.58,0.0001406,2]
[329195383,1718170159393,-4905.31,0.00014295,2]
[329195384,1718170159417,-499.99,0.00014295,2]
[329195385,1718170159442,-6068.925,0.00014295,2]
[329195386,1718170159468,-163.94,0.00014394,2]
[329195387,1718170159494,-414.21555173,0.00014592,2]
[329195388,1718170159520,-744.0,0.00014641,2]
[329195389,1718170159545,-383.08543461,0.00014664,2]
[329195390,1718170159572,-1000.0,0.00014823,2]
[329195391,1718170159597,-38052.27868011,0.0001485,2]
[329195392,1718170159624,-203.46657531,0.00014883,2]
[329195393,1718170159651,-2542.43441576,0.00014898,2]
[329195394,1718170159675,-794.83271597,0.00014898,2]
[329195395,1718170159699,-2500.0,0.00014898,2]
[329195396,1718170159722,-15755.5456,0.000149,2]
[329195397,1718170159747,-129561.0914,0.000149,2]
[329195398,1718170159771,-183.9091188,0.000149,2]
[329195399,1718170159797,-322.9015462,0.000149,2]
[329195400,1718170159823,-151.98,0.0001499,2]
[329195401,1718170159849,-338.68648196,0.00014998,2]
[329195402,1718170159872,-238.21449077,0.00014998,2]
[329195403,1718170159896,-3063.88513928,0.00014998,2]
[329195404,1718170159920,-1474.68141437,0.00014998,2]
[329195405,1718170159943,-345.57209114,0.00014998,2]
[329195406,1718170161463,-1277.25177394,0.00014999,2]
[329195407,1718170161498,-170.66232196,0.00014999,2]
[329195408,1718170161525,-333.98930856,0.00014999,2]
[329195409,1718170161555,-162.48446622,0.00014999,2]
[329195410,1718170161594,-3384.77160162,0.00014999,2]
[329195411,1718170161622,-6105.40173,0.00014999,2]
[329195412,1718170161649,-407.62260723,0.00014999,2]
[329195413,1718170161675,-1670.78774687,0.00015,2]
[329195429,1718170233327,-300.4733059,0.00012332,2]
[329195430,1718170233339,-155.25756887,0.00012332,2]
[329195431,1718170233350,-3797.55647824,0.00012332,2]
[329195432,1718170233791,-277.94262863,0.00012332,2]
[329195433,1718170233807,-367.67329241,0.00012332,2]
[329195434,1718170234054,-3842.55938278,0.00012332,2]
[329195435,1718170234071,-46302.47115842,0.00012332,2]
[329195436,1718170234093,-155.0,0.00013698,2]
[329195437,1718170234107,-2005.2772,0.000148,2]
[329195438,1718170234120,-235.52190172,0.000149,2]
[329195439,1718170234134,-322.9015462,0.000149,2]
[329195440,1718170234145,-151.98,0.0001499,2]
[329195441,1718170234158,-151.98,0.0001499,2]
[329195442,1718170234169,-150.0,0.00014999,2]
[329195443,1718170234199,-155.42459733,0.00014999,2]
[329195444,1718170234219,-134491.81266154,0.00015,2]
[329195445,1718170234231,-41529.41248337,0.00015,2]
[329195446,1718170234381,-715.22272661,0.00015,2]
[329195447,1718170234395,-5401.15748693,0.00015,2]
[329195448,1718170234424,-2121.37763752,0.00015,2]
[329195449,1718170234447,-466.63551131,0.00015,2]
[329195450,1718170234470,-3172.60248449,0.00015,2]
[329195451,1718170234497,-4189.61008879,0.00015,2]
[329195452,1718170234510,-453.51,0.00015,2]
[329195486,1718170240450,-68885.91814235,0.00015,2]
[329195487,1718170240801,-846.30282895,0.00015,2]
[329195489,1718170241048,-1525.21328915,0.00015,2]
[329195576,1718170243158,-64011.87063365,0.00015,2]
[329195589,1718170243416,-337.2767068,0.00015,2]
[329195606,1718170243667,-3223.9677333,0.00015,2]
[329195634,1718170244137,-2213.63470269,0.00015,2]
[329195636,1718170244152,-694.89327322,0.00015,2]
[329195638,1718170244172,-1217.89072931,0.00015,2]
[329195641,1718170244192,-31900.85029348,0.00015,2]
[329195918,1718170248428,-40000.30353,0.00015,2]
[329195937,1718170248700,-47903.13743643,0.00015,2]
[329195980,1718170249451,-1027.23935914,0.00015,2]
[329196003,1718170249800,-1100.0,0.00015,2]
[329196452,1718170470265,13590.36426872,6.94e-05,2]
[329196453,1718170597127,17248.59363647,0.0001,2]
[329196456,1718170911223,830.11,0.00011273,2]
[329196459,1718171209069,11150.42335326,0.00011273,2]
[329196460,1718171209105,68283.42,0.00011273,2]
[329196461,1718171209460,13475.9964016,0.00011273,2]
[329196466,1718171355179,-250.0,0.00013086,2]
[329196467,1718171355208,-280.21,0.0001313,2]
[329196468,1718171355235,-600.0,0.0001313,2]
[329196469,1718171355260,-200.0,0.00013168,2]
[329196470,1718171355284,-1292.06094089,0.00013276,2]
[329196483,1718171432967,-250.0,0.00013195,2]
[329196484,1718171432979,-663.07,0.00013195,2]
[329196485,1718171432989,-3315.0163352,0.00013428,2]
[329196486,1718171433002,-2191.7736648,0.00013428,2]
[329196487,1718171433026,-200.0,0.00013484,2]
[329196488,1718171433041,-167.55,0.00013667,2]
[329196489,1718171433059,-499.99,0.00013667,2]
[329196490,1718171433073,-150.0,0.00013671,2]
[329196491,1718171433087,-165.34,0.00013699,2]
[329196492,1718171433108,-512.05,0.00013699,2]
[329196493,1718171433121,-200.0,0.00013699,2]
[329196494,1718171433134,-178.46,0.00013711,2]
[329196495,1718171433146,-400.0,0.00013853,2]
[329196496,1718171433157,-304.33,0.00013853,2]
[329196497,1718171433168,-1393.33701124,0.00013898,2]
[329196498,1718171433183,-1500.0,0.00013898,2]
[329196499,1718171433196,-1646.61989151,0.00013899,2]
[329196500,1718171433212,-843.82,0.00013899,2]
[329196501,1718171433229,-4616.28,0.00013899,2]
[329196502,1718171433240,-6029.46613452,0.000139,2]
[329196503,1718171433258,-8707.49416548,0.000139,2]
[329196504,1718171433274,-534.59854164,0.000139,2]
[329196505,1718171433288,-484.40915836,0.000139,2]
[329196506,1718171433301,-752.96697792,0.000139,2]
[329196507,1718171433312,-12653.47515067,0.000139,2]
[329196508,1718171433326,-8980.97957088,0.000139,2]
[329196509,1718171433339,-385.01912969,0.000139,2]
[329196510,1718171433379,-328.8373251,0.000139,2]
[329196511,1718171433396,-460.43123519,0.000139,2]
[329196512,1718171433409,-1085.42033485,0.000139,2]
[329196513,1718171433486,-7823.73689433,0.000139,2]
[329196514,1718171433517,-44945.76225929,0.000139,2]
[329196515,1718171433530,-245.58433881,0.000139,2]
[329196516,1718171433540,-206.08166404,0.000139,2]
[329196517,1718171433551,-325.1179482,0.000139,2]
[329196518,1718171433563,-190.85369924,0.000139,2]
[329196519,1718171433576,-362.296113,0.00013973,2]
[329196520,1718171433611,-4614.50555793,0.00013985,2]
[329196521,1718171433634,-184.66,0.0001399,3]
[329196522,1718171433656,-460.56426366,0.0001399,2]
[329196523,1718171433675,-155.40944291,0.00013998,2]
[329196524,1718171433688,-189.97483543,0.00013998,2]
[329196525,1718171433704,-10299.81874138,0.00013998,2]
[329196526,1718171433717,-1052.98663514,0.00013998,2]
[329196527,1718171433728,-244.4948077,0.00013998,2]
[329196529,1718171433738,-201.64148981,0.00013998,2]
[329196531,1718171433749,-155.0,0.00013998,2]
[329196533,1718171433760,-155.33693449,0.00013998,2]
[329196535,1718171433770,-156.55806351,0.00013998,2]
[329196537,1718171433780,-157.99223805,0.00013998,2]
[329196539,1718171433790,-285.24705761,0.00013998,2]
[329196541,1718171433800,-249.09428206,0.00013998,2]
[329196543,1718171433811,-155.45517096,0.00013998,2]
[329196545,1718171433821,-155.39701641,0.00013998,2]
[329196547,1718171433832,-181.09725025,0.00013998,2]
[329196548,1718171433842,-206.22378789,0.00013998,2]
[329196550,1718171433852,-632427.38994312,0.00014,2]
[329196552,1718171433863,-416.36,0.00014041,2]
[329196554,1718171433878,-245.58433877,0.0001415,2]
[329196555,1718171433889,-198.46,0.00014195,2]
[329196557,1718171433910,-937.27,0.00014195,2]
[329196560,1718171433925,-1304.75816031,0.00014248,2]
[329196562,1718171433943,-245.58433877,0.000144,2]
[329196564,1718171433957,-190.85369923,0.000144,2]
[329196566,1718171433969,-173.51,0.0001456,2]
[329196568,1718171433983,-414.21555173,0.0001457,2]
[329196570,1718171433997,-165.34,0.00014612,2]
[329196571,1718171434009,-245.58433877,0.0001465,2]
[329196574,1718171434022,-383.08543461,0.00014725,2]
[329196576,1718171434036,-600.0,0.00014771,2]
[329196577,1718171434052,-362.296113,0.00014795,2]
[329196579,1718171434074,-255.47925675,0.00014848,2]
[329196581,1718171434094,-2338.46617,0.0001485,2]
[329196583,1718171434104,-206.08166397,0.00014874,2]
[329196585,1718171434123,-806.90401057,0.00014899,5]
[329196587,1718171434140,-17788.67631717,0.000149,2]
[329196589,1718171434151,-1000.0,0.000149,2]
[329196590,1718171434162,-3293.48768172,0.000149,2]
[329196592,1718171434178,-1035.3464301,0.000149,2]
[329196594,1718171434189,-150.09245889,0.000149,2]
[329196596,1718171434215,-165.59314623,0.000149,2]
[329196597,1718171434233,-154.16874673,0.000149,2]
[329196598,1718171434248,-245.58433877,0.000149,2]
[329196599,1718171434270,-181.7488999,0.000149,2]
[329196600,1718171434292,-190.85369923,0.000149,2]
[329196601,1718171434310,-219.69,0.00014904,2]
[329196602,1718171434321,-152.11,0.00014988,2]
[329196603,1718171434340,-152.11,0.0001499,2]
[329196604,1718171434352,-152.11,0.0001499,2]
[329196605,1718171434364,-460.56426366,0.0001499,2]
[329196606,1718171434379,-338.29816075,0.00014998,2]
[329196607,1718171434390,-269.07320624,0.00014998,2]
[329196608,1718171434401,-218.1552576,0.00014998,2]
[329196609,1718171434415,-1000.0,0.00014998,2]
[329196610,1718171434434,-1000.0,0.00014998,2]
[329196611,1718171434445,-524.4208755,0.00014998,2]
[329196612,1718171434459,-788.56711512,0.00014998,2]
[329196613,1718171434497,-3046.30922724,0.00014998,2]
[329196614,1718171434520,-2417.64410478,0.00014998,2]
[329196615,1718171434541,-239.79550489,0.00014998,2]
[329196616,1718171434577,-215.95453193,0.00014998,2]
[329196617,1718171434588,-346.17560194,0.00014998,2]
[329196618,1718171434599,-2386.00563136,0.00014998,2]
[329196619,1718171434617,-638.95398189,0.00014998,2]
[329196620,1718171434627,-350.33069042,0.00014998,2]
[329196621,1718171434638,-155.41724428,0.00014998,2]
[329196622,1718171434650,-2821.19405743,0.00014998,2]
[329196623,1718171434662,-155.63735527,0.00014998,2]
[329196624,1718171434673,-157.12071335,0.00014998,2]
[329196625,1718171434684,-266.86715831,0.00014998,2]
[329196626,1718171434695,-436.22788795,0.00014998,2]
[329196627,1718171434707,-35504.94626586,0.00014998,2]
[329196628,1718171434724,-524.84526053,0.00014998,2]
[329196629,1718171434736,-156.7012365,0.00014998,2]
[329196630,1718171434747,-1088.43010461,0.00014998,2]
[329196631,1718171434763,-21951.39949942,0.00014999,2]
[329196632,1718171434783,-416.72114572,0.00014999,2]
[329196633,1718171434797,-94989.84996232,0.00015,2]
[329196634,1718171434812,-221181.65928962,0.00015,2]
[329196635,1718171434937,-658.25,0.00015,2]
[329196638,1718171439177,-623827.16315016,0.00015,2]
[329196639,1718171439189,-211180.42508915,0.00015,2]
[329196640,1718171439201,-155.0,0.00015,2]
[329196641,1718171439214,-155.0,0.00015,2]
[329196642,1718171439227,-951.78204638,0.00015,2]
[329196643,1718171439240,-4220.14599787,0.00015,2]
[329196644,1718171439252,-155.0,0.00015,2]
[329196645,1718171439264,-2487.18140371,0.00015,2]
[329196646,1718171439276,-4581.6293,0.00015,2]
[329196647,1718171439289,-1920.87363686,0.00015,2]
[329196648,1718171439300,-2000.0,0.00015,2]
[329196649,1718171439311,-200.0,0.00015,2]
[329196650,1718171439324,-213854.57466114,0.00015,2]
[329196651,1718171439336,-674.0,0.00015,2]
[329196652,1718171439349,-969.77304474,0.00015045,2]
[329196653,1718171439363,-2000.0,0.0001515,2]
[329196654,1718171439374,-200.0,0.0001515,2]
[329196655,1718171439387,-152.52,0.00015243,2]
[329196656,1718171439402,-152.52,0.00015248,2]
[329196657,1718171439415,-332.266,0.00015249,2]
[329196658,1718171439429,-977.661,0.00015249,2]
[329196659,1718171439439,-301.351,0.00015249,2]
[329196660,1718171439450,-1276.012,0.00015249,2]
[329196661,1718171439462,-1651.0,0.00015249,2]
[329196662,1718171439473,-900.081,0.00015249,2]
[329196663,1718171439502,-448.47,0.00015249,2]
[329196664,1718171439532,-250.375,0.00015249,2]
[329196665,1718171439561,-808.0,0.00015249,2]
[329196666,1718171439580,-2407.0,0.00015249,2]
[329196667,1718171439595,-165.0,0.00015249,2]
[329196668,1718171439616,-447.0,0.00015249,2]
[329196669,1718171439660,-3177.0,0.00015249,2]
[329196670,1718171439682,-546.0,0.00015249,2]
[329196671,1718171439701,-1304.0,0.00015249,2]
[329196672,1718171439712,-205.637,0.00015249,2]
[329196673,1718171439726,-38079.0,0.00015249,2]
[329196674,1718171439741,-5157.0,0.00015249,2]
[329196675,1718171439762,-283.9,0.00015249,2]
[329196676,1718171439778,-1574.0,0.00015249,2]
[329196677,1718171439794,-150.42,0.00015249,2]
[329196678,1718171439811,-152.52,0.00015252,2]
[329196679,1718171439825,-152.52,0.00015257,2]
[329196680,1718171439841,-152.52,0.00015261,2]
[329196681,1718171439858,-152.52,0.00015266,2]
[329196682,1718171439869,-152.52,0.0001527,2]
[329196683,1718171439881,-152.52,0.00015275,2]
[329196684,1718171439892,-152.52,0.00015279,2]
[329196685,1718171439907,-152.52,0.00015284,2]
[329196686,1718171439923,-152.52,0.00015288,2]
[329196687,1718171439948,-152.52,0.00015293,2]
[329196690,1718171439971,-152.52,0.00015297,2]
[329196692,1718171439983,-200.0,0.00015301,2]
[329196694,1718171440001,-152.52,0.00015301,2]
[329196696,1718171440021,-152.52,0.00015306,2]
[329196700,1718171440033,-152.52,0.0001531,2]
[329196701,1718171440064,-152.52,0.00015315,2]
[329196704,1718171440078,-152.52,0.00015319,2]
[329196706,1718171440094,-165.34,0.00015525,2]
[329196709,1718171440117,-400.0,0.00015585,2]
[329196710,1718171440131,-362.296113,0.00015616,2]
[329196712,1718171440150,-167.9,0.00015831,2]
[329196715,1718171440175,-167.55,0.00015831,2]
[329196717,1718171440193,-167.02,0.00015831,2]
[329196719,1718171440205,-206.08166397,0.00015849,2]
[329196722,1718171440228,-306.73,0.0001589,3]
[329196723,1718171440247,-17788.67631714,0.00016009,2]
[329196725,1718171440263,-150.404,0.00016023,2]
[329196727,1718171440278,-150.201,0.00016023,2]
[329196729,1718171440290,-5506.79,0.00016168,2]
[329196731,1718171440313,-515.0,0.00016338,2]
[329196733,1718171440328,-600.0,0.00016412,2]
[329196735,1718171440342,-165.34,0.00016438,2]
[329196737,1718171440355,-499.25,0.00016438,2]
[329196739,1718171440366,-362.296113,0.00016438,2]
[329196742,1718171440383,-1335.73,0.00016438,2]
[329196744,1718171440398,-1807.13979758,0.000165,2]
[329196746,1718171440418,-417.62,0.00016712,2]
[329196748,1718171440429,-1437.0,0.000168,2]
[329196750,1718171440445,-588.0,0.000168,2]
[329196752,1718171440460,-206.08166397,0.00016823,2]
[329196754,1718171440470,-23900.0,0.00016922,2]
[329196755,1718171440505,-17788.67631714,0.00017119,2]
[329196757,1718171440525,-500.0,0.00017119,2]
[329196759,1718171440537,-500.0,0.00017119,2]
[329196760,1718171440548,-500.0,0.00017119,2]
[329196762,1718171440559,-500.0,0.00017119,2]
[329196765,1718171440580,-500.0,0.00017119,2]
[329196767,1718171440597,-500.0,0.00017119,2]
[329196769,1718171440608,-500.0,0.00017119,2]
[329196771,1718171440626,-500.0,0.00017119,2]
[329196773,1718171440638,-500.0,0.00017119,2]
[329196775,1718171440651,-500.0,0.00017119,2]
[329196776,1718171440663,-500.0,0.00017119,2]
[329196778,1718171440674,-500.0,0.00017119,2]
[329196780,1718171440686,-500.0,0.00017119,2]
[329196782,1718171440697,-500.0,0.00017119,2]
[329196785,1718171440717,-500.0,0.00017119,2]
[329196787,1718171440729,-500.0,0.00017119,2]
[329196789,1718171440744,-500.0,0.00017119,2]
[329196791,1718171440761,-500.0,0.00017119,2]
[329196793,1718171440773,-500.0,0.00017119,2]
[329196795,1718171440785,-500.0,0.00017119,2]
[329196797,1718171440796,-500.0,0.00017119,2]
[329196799,1718171440806,-500.0,0.00017119,2]
[329196800,1718171440820,-500.0,0.00017119,2]
[329196802,1718171440831,-500.0,0.00017119,2]
[329196806,1718171440843,-500.0,0.00017119,2]
[329196808,1718171440854,-500.0,0.00017119,2]
[329196810,1718171440865,-500.0,0.00017119,2]
[329196811,1718171440875,-500.0,0.00017119,2]
[329196813,1718171440886,-500.0,0.00017119,2]
[329196816,1718171440897,-500.0,0.00017119,2]
[329196818,1718171440907,-500.0,0.00017119,2]
[329196820,1718171440919,-500.0,0.00017119,2]
[329196822,1718171440929,-500.0,0.00017119,2]
[329196824,1718171440939,-500.0,0.00017119,2]
[329196826,1718171440949,-500.0,0.00017119,2]
[329196828,1718171440960,-500.0,0.00017119,2]
[329196830,1718171440971,-500.0,0.00017119,2]
[329196832,1718171440982,-500.0,0.00017119,2]
[329196834,1718171440993,-500.0,0.00017119,2]
[329196836,1718171441008,-500.0,0.00017119,2]
[329196838,1718171441021,-500.0,0.00017119,2]
[329196840,1718171441037,-500.0,0.00017119,2]
[329196842,1718171441053,-500.0,0.00017119,2]
[329196844,1718171441064,-500.0,0.00017119,2]
[329196846,1718171441076,-500.0,0.00017119,2]
[329196849,1718171441090,-500.0,0.00017119,2]
[329196852,1718171441103,-500.0,0.00017119,2]
[329196853,1718171441114,-500.0,0.00017119,2]
[329196857,1718171441133,-500.0,0.00017119,2]
[329196859,1718171441147,-500.0,0.00017119,2]
[329196861,1718171441165,-500.0,0.00017119,2]
[329196863,1718171441180,-500.0,0.00017119,2]
[329196866,1718171441201,-500.0,0.00017119,2]
[329196868,1718171441215,-500.0,0.00017119,2]
[329196869,1718171441237,-500.0,0.00017119,2]
[329196871,1718171441248,-500.0,0.00017119,2]
[329196872,1718171441263,-500.0,0.00017119,2]
[329196875,1718171441275,-500.0,0.00017119,2]
[329196877,1718171441290,-500.0,0.00017119,2]
[329196878,1718171441302,-500.0,0.00017119,2]
[329196880,1718171441313,-500.0,0.00017119,2]
[329196883,1718171441325,-500.0,0.00017119,2]
[329196887,1718171441343,-500.0,0.00017119,2]
[329196888,1718171441353,-500.0,0.00017119,2]
[329196890,1718171441367,-500.0,0.00017119,2]
[329196892,1718171441378,-500.0,0.00017119,2]
[329196894,1718171441389,-500.0,0.00017119,2]
[329196896,1718171441402,-500.0,0.00017119,2]
[329196898,1718171441424,-500.0,0.00017119,2]
[329196900,1718171441436,-500.0,0.00017119,2]
[329196902,1718171441447,-500.0,0.00017119,2]
[329196904,1718171441459,-500.0,0.00017119,2]
[329196906,1718171441470,-500.0,0.00017119,2]
[329196908,1718171441481,-500.0,0.00017119,2]
[329196909,1718171441514,-500.0,0.00017119,2]
[329196911,1718171441528,-500.0,0.00017119,2]
[329196913,1718171441540,-500.0,0.00017119,2]
[329196915,1718171441551,-500.0,0.00017119,2]
[329196917,1718171441562,-500.0,0.00017119,2]
[329196919,1718171441575,-500.0,0.00017119,2]
[329196921,1718171441587,-500.0,0.00017119,2]
[329196923,1718171441597,-500.0,0.00017119,2]
[329196925,1718171441609,-500.0,0.00017119,2]
[329196928,1718171441627,-500.0,0.00017119,2]
[329196930,1718171441638,-1234.0,0.000172,2]
[329196932,1718171441651,-362.296113,0.0001726,2]
[329196934,1718171441668,-400.0,0.00017316,2]
[329196936,1718171441681,-2338.46617,0.0001735,2]
[329196939,1718171441709,-270.40772885,0.0001745,2]
[329196941,1718171441729,-500.0,0.00017671,2]
[329196943,1718171441740,-500.0,0.00017671,2]
[329196945,1718171441757,-500.0,0.00017671,2]
[329196947,1718171441788,-500.0,0.00017671,2]
[329196948,1718171441801,-500.0,0.00017671,2]
[329196951,1718171441812,-500.0,0.00017671,2]
[329196953,1718171441835,-500.0,0.00017671,2]
[329196954,1718171441847,-500.0,0.00017671,2]
[329196956,1718171441858,-500.0,0.00017671,2]
[329196958,1718171441870,-500.0,0.00017671,2]
[329196960,1718171441882,-500.0,0.00017671,2]
[329196962,1718171441900,-500.0,0.00017671,2]
[329196963,1718171441912,-500.0,0.00017671,2]
[329196966,1718171441931,-500.0,0.00017671,2]
[329196969,1718171441958,-500.0,0.00017671,2]
[329196971,1718171441970,-500.0,0.00017671,2]
[329196972,1718171441982,-500.0,0.00017671,2]
[329196974,1718171442012,-500.0,0.00017671,2]
[329196976,1718171442034,-500.0,0.00017671,2]
[329196978,1718171442055,-500.0,0.00017671,2]
[329196980,1718171442077,-500.0,0.00017671,2]
[329196981,1718171442098,-500.0,0.00017671,2]
[329196983,1718171442111,-500.0,0.00017671,2]
[329196985,1718171442124,-500.0,0.00017671,2]
[329196987,1718171442139,-500.0,0.00017671,2]
[329196989,1718171442152,-500.0,0.00017671,2]
[329196991,1718171442163,-500.0,0.00017671,2]
[329196993,1718171442175,-500.0,0.00017671,2]
[329196994,1718171442187,-500.0,0.00017671,2]
[329196996,1718171442201,-500.0,0.00017671,2]
[329196999,1718171442220,-500.0,0.00017671,2]
[329197001,1718171442233,-500.0,0.00017671,2]
[329197003,1718171442247,-500.0,0.00017671,2]
[329197005,1718171442266,-500.0,0.00017671,2]
[329197007,1718171442280,-500.0,0.00017671,2]
[329197009,1718171442292,-500.0,0.00017671,2]
[329197010,1718171442309,-500.0,0.00017671,2]
[329197012,1718171442322,-500.0,0.00017671,2]
[329197014,1718171442339,-500.0,0.00017671,2]
[329197016,1718171442351,-500.0,0.00017671,2]
[329197018,1718171442362,-500.0,0.00017671,2]
[329197020,1718171442376,-500.0,0.00017671,2]
[329197022,1718171442390,-500.0,0.00017671,2]
[329197024,1718171442402,-500.0,0.00017671,2]
[329197026,1718171442414,-500.0,0.00017671,2]
[329197028,1718171442429,-500.0,0.00017671,2]
[329197030,1718171442443,-500.0,0.00017671,2]
[329197032,1718171442456,-500.0,0.00017671,2]
[329197034,1718171442468,-500.0,0.00017671,2]
[329197036,1718171442494,-500.0,0.00017671,2]
[329197037,1718171442519,-500.0,0.00017671,2]
[329197038,1718171442533,-500.0,0.00017671,2]
[329197039,1718171442545,-500.0,0.00017671,2]
[329197040,1718171442556,-500.0,0.00017671,2]
[329197041,1718171442568,-500.0,0.00017671,2]
[329197042,1718171442579,-500.0,0.00017671,2]
[329197043,1718171442594,-500.0,0.00017671,2]
[329197044,1718171442606,-500.0,0.00017671,2]
[329197045,1718171442621,-500.0,0.00017671,2]
[329197046,1718171442636,-500.0,0.00017671,2]
[329197049,1718171442651,-500.0,0.00017671,2]
[329197051,1718171442667,-500.0,0.00017671,2]
[329197053,1718171442680,-500.0,0.00017671,2]
[329197056,1718171442709,-500.0,0.00017671,2]
[329197058,1718171442725,-500.0,0.00017671,2]
[329197061,1718171442757,-500.0,0.00017671,2]
[329197063,1718171442771,-500.0,0.00017671,2]
[329197065,1718171442783,-500.0,0.00017671,2]
[329197067,1718171442817,-500.0,0.00017671,2]
[329197069,1718171442832,-500.0,0.00017671,2]
[329197071,1718171442844,-500.0,0.00017671,2]
[329197073,1718171442858,-500.0,0.00017671,2]
[329197076,1718171442876,-500.0,0.00017671,2]
[329197077,1718171442887,-500.0,0.00017671,2]
[329197080,1718171442908,-500.0,0.00017671,2]
[329197082,1718171442919,-500.0,0.00017671,2]
[329197084,1718171442935,-500.0,0.00017671,2]
[329197086,1718171442950,-206.08166397,0.00017798,2]
[329197088,1718171442972,-355.0,0.000179,2]
[329197091,1718171442985,-1000.0,0.000179,2]
[329197093,1718171443015,-899.0,0.000179,2]
[329197096,1718171443033,-6866.44404497,0.00018,2]
[329197098,1718171443066,-649.34168046,0.00018,2]
[329197099,1718171443085,-600.0,0.00018053,2]
[329197101,1718171443114,-362.296113,0.00018082,2]
[329197103,1718171443128,-165.59314621,0.00018085,2]
[329197105,1718171443141,-1664.43265588,0.000181,2]
[329197107,1718171443160,-17788.67631714,0.00018228,2]
[329197110,1718171443179,-1651.0,0.00018249,2]
[329197112,1718171443195,-441.0,0.00018249,2]
[329197113,1718171443207,-808.0,0.00018249,2]
[329197115,1718171443224,-2407.0,0.00018249,2]
[329197118,1718171443243,-155.323,0.00018249,2]
[329197120,1718171443257,-445.0,0.00018249,2]
[329197122,1718171443269,-3168.0,0.00018249,2]
[329197124,1718171443281,-546.0,0.00018249,2]
[329197125,1718171443294,-1304.0,0.00018249,2]
[329197127,1718171443306,-1992.096,0.00018249,2]
[329197130,1718171443327,-310.024,0.00018249,2]
[329197132,1718171443345,-1368.0,0.00018249,2]
[329197134,1718171443360,-201.0,0.0001838,2]
[329197136,1718171443372,-160.979,0.00018444,2]
[329197138,1718171443385,-160.979,0.00018527,2]
[329197139,1718171443396,-160.979,0.00018611,2]
[329197142,1718171443410,-160.979,0.00018696,2]
[329197144,1718171443428,-866.68,0.00018736,2]
[329197146,1718171443440,-851.06,0.00018736,2]
[329197148,1718171443457,-851.06,0.00018736,2]
[329197150,1718171443477,-854.29,0.00018736,2]
[329197151,1718171443501,-206.08166397,0.00018772,2]
[329197153,1718171443522,-201.0,0.0001889,2]
[329197156,1718171443546,-362.296113,0.00018904,2]
[329197157,1718171443560,-5506.79,0.00018907,2]
[329197159,1718171443572,-413.37213696,0.00019,2]
[329197161,1718171443585,-500.0,0.00019025,2]
[329197163,1718171443609,-400.0,0.00019048,2]
[329197165,1718171443634,-151.0,0.00019059,2]
[329197167,1718171443651,-154.20198688,0.00019069,2]
[329197169,1718171443663,-230.64039273,0.00019069,2]
[329197170,1718171443676,-294.94678636,0.00019069,2]
[329197172,1718171443688,-616.75856216,0.00019069,2]
[329197174,1718171443700,-4406.23026268,0.00019069,2]
[329197176,1718171443712,-1000.0,0.00019078,2]
[329197178,1718171443725,-10000.0,0.00019078,2]